[Event "World Team-ch Women 2019"]
[Site "Astana"]
[Date "2019.03.14"]
[Round "9.16"]
[White "Gevorgyan, Maria"]
[Black "Dauletova, Gulmira"]
[Result "0-1"]
[ECO "B23"]
[WhiteElo "2264"]
[BlackElo "2263"]
[Annotator "NA"]
[PlyCount "80"]
[EventDate "2019.02.05"]
[EventType "team-tourn"]
[EventCountry "KAZ"]
[SourceTitle "playchess.com"]
[Source "ChessBase"]
[SourceQuality "1"]
[WhiteTeam "Armenia"]
[BlackTeam "Kazakhstan"]
[WhiteTeamCountry "ARM"]
[BlackTeamCountry "KAZ"]
[TimeControl "40/5400+30:1800+30"]

1. e4 {[%emt 0:00:00]} c5 {[%emt 0:00:00]} 2. Nc3 {[%emt 0:00:03]} e6 {[%emt 0:00:00]} 3. f4 {[%emt 0:01:05]} d5 {[%emt 0:00:08]} 4. Bb5+ {[%emt 0:00:24]} Bd7 {[%emt 0:00:08]} 5. Bxd7+ {[%emt 0:00:15]} Qxd7 {[%emt 0:00:13]} 6. d3 {[%emt 0:00:54]} Nc6 {[%emt 0:02:09]} 7. Nf3 {[%emt 0:00:52]} d4 {[%emt 0:02:18]} 8. Ne2 {[%emt 0:00:48]} Nf6 {[%emt 0:00:08] B23: Closed Sicilian: Lines without g3} (8... f5 9. O-O Nf6 10. Ng3 g6 11. exf5 exf5 12. Re1+ Be7 13. Ne5 Nxe5 14. fxe5 Nd5 15. Qf3 O-O-O 16. Bd2 {½-½ (46) Ali,S (2393)-Arencibia Rodriguez,W (2506) Sharjah 2016}) 9. O-O {[%emt 0:01:39]} Be7 {[%emt 0:01:59]} 10. Ng3 {[%emt 0:02:33]} h5 {[%emt 0:07:26]} 11. Ne5 {[%emt 0:07:42]} Nxe5 $146 {[%emt 0:27:33]} ({Predecessor:} 11... Qc7 $11 12. Nxc6 Qxc6 13. Qf3 h4 14. Ne2 {½-½ (68) Moya Arau,C (2032)-Gallart Zafra,J (2163) Barcelona 2018}) 12. fxe5 {[%emt 0:02:46]} Ng4 {[%emt 0:02:14] [#]} 13. Nxh5 $1 {[%emt 0:11:50]} Nxh2 $1 {[%emt 0:04:06]} 14. Nxg7+ {[%emt 0:00:16]} (14. Rf2 $11 g6 15. Nf4) 14... Kf8 {[%emt 0:00:44]} 15. Rf2 {[%emt 0:00:12] [#]} Bh4 $1 {[%emt 0:08:53]} ({Much worse is} 15... Kxg7 $6 16. g3 $14) 16. Nh5 {[%emt 0:00:18]} Bxf2+ {[%emt 0:00:30]} 17. Kxf2 {[%emt 0:00:06] [#]} f5 $1 {[%emt 0:00:07]} 18. exf6 $2 {[%emt 0:05:17]} ({White has to play} 18. Nf6 $1 $15 Qg7 19. exf5 exf5 20. c3) 18... e5 $2 {[%emt 0:03:41]} (18... Qf7 19. Nf4 Qxf6) 19. Ng3 {[%emt 0:07:00] [#]} Kf7 $1 {[%emt 0:08:37]} 20. Nf5 {[%emt 0:10:02]} Rag8 {[%emt 0:05:56]} 21. c3 {[%emt 0:05:30]} Ng4+ {[%emt 0:02:38]} 22. Kf3 $19 {[%emt 0:02:30]} (22. Ke2 $142 c4 23. cxd4) 22... Kxf6 {[%emt 0:01:43]} 23. cxd4 {[%emt 0:02:09]} cxd4 {[%emt 0:02:49]} 24. Bd2 {[%emt 0:00:36]} Qh7 {[%emt 0:02:04]} 25. Ke2 {[%emt 0:11:34]} Ne3 {[%emt 0:06:40]} 26. Nxe3 {[%emt 0:03:55]} Qh5+ {[%emt 0:00:03]} 27. Ke1 {[%emt 0:04:21]} dxe3 {[%emt 0:00:11]} 28. Bxe3 {[%emt 0:00:21]} Rxg2 {[%emt 0:01:44]} 29. Qxh5 {[%emt 0:00:52]} Rxh5 {[%emt 0:00:01]} 30. Kf1 {[%emt 0:00:11]} Rxb2 {[%emt 0:00:23]} 31. Bxa7 {[%emt 0:01:10]} Rh1+ {[%emt 0:04:32]} 32. Bg1 {[%emt 0:00:04]} Kg5 {[%emt 0:00:21]} 33. a4 {[%emt 0:00:48]} Kg4 {[%emt 0:00:57]} 34. Re1 {[%emt 0:00:40]} Rd2 {[%emt 0:01:38]} 35. a5 {[%emt 0:03:38]} Kf4 {[%emt 0:00:19]} 36. d4 {[%emt 0:02:23]} exd4 {[%emt 0:00:14]} 37. Rb1 {[%emt 0:01:00]} Kf3 {[%emt 0:01:41]} 38. Rb3+ {[%emt 0:00:36]} d3 {[%emt 0:00:02]} 39. Ke1 {[%emt 0:00:04]} Re2+ {[%emt 0:00:04]} 40. Kf1 {[%emt 0:00:00]} Rf2+ {[%emt 0:00:00]} 0-1

[Event "World Team-ch Women 2019"]
[Site "Astana"]
[Date "2019.03.14"]
[Round "9.17"]
[White "Nemcova, Katerina"]
[Black "Wafa, Shahenda"]
[Result "1/2-1/2"]
[ECO "A04"]
[WhiteElo "2315"]
[BlackElo "2175"]
[Annotator "NA"]
[PlyCount "69"]
[EventDate "2019.02.05"]
[EventType "team-tourn"]
[EventCountry "KAZ"]
[SourceTitle "playchess.com"]
[Source "ChessBase"]
[SourceQuality "1"]
[WhiteTeam "United States"]
[BlackTeam "Egypt"]
[WhiteTeamCountry "USA"]
[BlackTeamCountry "EGY"]
[TimeControl "40/5400+30:1800+30"]

{[%evp 10,58,20,24,67,48,43,0,33,38,50,45,50,31,38,45,38,27,36,39,38,38,38,41,44,43,75,68,116,23,22,22,14,0,0,0,0,32767,0,-6,0,32767,0,32767,32767,32767,32767,32767,32767,32767,17]} 1. Nf3 {[%emt 0:00:00]} f5 {[%emt 0:01:08]} 2. d3 {[%emt 0:01:25]} d5 {[%emt 0:06:04]} 3. c4 {[%emt 0:02:09]} c6 {[%emt 0:00:47]} 4. Nbd2 {[%emt 0:13:50]} Nf6 {[%emt 0:00:36]} 5. g3 {[%emt 0:00:29]} e6 {[%emt 0:04:33]} 6. Bg2 {[%emt 0:00:19]} Bd6 {[%emt 0:00:23]} 7. O-O {[%emt 0:02:06]} O-O {[%emt 0:01:35]} 8. b3 {[%emt 0:14:47]} (8. e4 $5 {[%cal Re4e5]} dxe4 9. dxe4 $14) 8... Nbd7 {[%emt 0:03:33]} 9. Bb2 {[%emt 0:03:08]} Qe8 {[%emt 0:05:27] A10: English Opening: Unusual Replies for Black} (9... e5 10. cxd5 cxd5 11. e4 fxe4 12. dxe4 d4 13. Nc4 Bc7 14. Ba3 Re8 15. Qe2 Nf8 16. Ne1 a5 17. Nd3 b5 {½-½ (49) Galchenko,M (2336)-Sundararajan,K (2444) Pardubice 2017}) 10. e4 {[%emt 0:02:37]} fxe4 {[%emt 0:08:23]} 11. dxe4 {[%emt 0:00:18]} dxe4 {[%emt 0:03:00]} 12. Ng5 {[%emt 0:02:47]} e3 {[%emt 0:04:07]} 13. fxe3 {[%emt 0:01:33]} Bc5 {[%emt 0:01:42]} 14. Qe2 {[%emt 0:03:25]} Qh5 $146 {[%emt 0:06:05]} ({Predecessor:} 14... Bb6 15. Nde4 Qe7 16. Rad1 h6 17. Nh3 {1-0 (66) Jimenez,J (2205)-De Battista,F (1817) Villaguay 2017}) 15. Qxh5 $1 {[%emt 0:10:58]} Bxe3+ {[%emt 0:00:11]} 16. Kh1 {[%emt 0:00:11]} Nxh5 {[%emt 0:00:08]} 17. Nde4 {[%emt 0:02:52]} ({Much weaker is} 17. Nxe6 Bxd2 18. Nxf8 Nxf8 $17) 17... Ndf6 {[%emt 0:04:26]} 18. Rae1 {[%emt 0:02:48]} Bb6 {[%emt 0:03:01]} 19. c5 {[%emt 0:08:12]} (19. Ba3 $16 Rd8 20. Nd6) 19... Ba5 {[%emt 0:00:38]} 20. Re2 {[%emt 0:02:53]} h6 {[%emt 0:02:55]} 21. Nxf6+ {[%emt 0:03:21]} (21. Nxe6 $5 Bxe6 22. Nxf6+ Nxf6 23. Rxe6 $11) 21... Nxf6 {[%emt 0:00:57]} 22. Nxe6 {[%emt 0:01:09]} Re8 {[%emt 0:04:46]} 23. Nf4 {[%emt 0:07:16]} Rxe2 {[%emt 0:02:15]} 24. Nxe2 {[%emt 0:00:04]} Bg4 {[%emt 0:00:08]} 25. Nf4 {[%emt 0:00:28]} Re8 {[%emt 0:06:35]} 26. h3 {[%emt 0:02:01]} Bc8 {[%emt 0:02:41]} 27. Bxf6 {[%emt 0:01:42]} gxf6 {[%emt 0:00:05]} 28. Nh5 {[%emt 0:00:06]} Re5 {[%emt 0:00:38]} 29. Nxf6+ {[%emt 0:00:21]} Kg7 $11 {[%emt 0:00:37]} 30. a3 {[%emt 0:05:48]} Bd8 {[%emt 0:05:44]} 31. Ne4 {[%emt 0:01:44]} Bxh3 {[%emt 0:00:43]} 32. Bxh3 {[%emt 0:01:53]} Rxe4 {[%emt 0:00:04]} 33. Rd1 {[%emt 0:00:29]} Bf6 {[%emt 0:00:48]} 34. Rd7+ {[%emt 0:00:59]} Re7 {[%emt 0:00:09]} 35. Rxe7+ {[%emt 0:02:04]} 1/2-1/2

[Event "World Team-ch Women 2019"]
[Site "Astana"]
[Date "2019.03.14"]
[Round "9.18"]
[White "Wafa, Shrook"]
[Black "Yip, Carissa"]
[Result "1-0"]
[ECO "B51"]
[WhiteElo "2166"]
[BlackElo "2279"]
[Annotator "ChessBase"]
[PlyCount "97"]
[EventDate "2019.02.05"]
[EventType "team-tourn"]
[EventCountry "KAZ"]
[SourceTitle "playchess.com"]
[Source "ChessBase"]
[SourceQuality "1"]
[WhiteTeam "Egypt"]
[BlackTeam "United States"]
[WhiteTeamCountry "EGY"]
[BlackTeamCountry "USA"]
[TimeControl "40/5400+30:1800+30"]

1. e4 {[%emt 0:00:00]} c5 {[%emt 0:00:00]} 2. Nf3 {[%emt 0:00:00]} d6 {[%emt 0:00:00]} 3. Bb5+ {[%emt 0:00:00]} Nd7 {[%emt 0:00:00]} 4. O-O {[%emt 0:00:24]} a6 {[%emt 0:00:44]} 5. Bxd7+ {[%emt 0:00:20]} Bxd7 {[%emt 0:00:03]} 6. d4 {[%emt 0:00:51]} cxd4 {[%emt 0:00:05]} 7. Qxd4 {[%emt 0:00:06]} e5 {[%emt 0:00:16]} 8. Qd3 {[%emt 0:00:40]} h6 {[%emt 0:00:04]} 9. a4 {[%emt 0:03:15]} Nf6 {[%emt 0:00:55]} 10. b3 {[%emt 0:01:47]} Bc6 {[%emt 0:03:55]} 11. Re1 {[%emt 0:01:23]} Be7 {[%emt 0:02:20]} 12. c4 {[%emt 0:01:29]} a5 {[%emt 0:10:35]} 13. Nc3 {[%emt 0:01:34]} O-O {[%emt 0:01:06]} 14. Ba3 {[%emt 0:04:34]} Nh5 {[%emt 0:11:49]} 15. g3 {[%emt 0:05:11]} Qc7 {[%emt 0:02:28]} 16. Nb5 {[%emt 0:05:23]} Bxb5 {[%emt 0:00:03]} 17. cxb5 {[%emt 0:00:06]} Rad8 {[%emt 0:06:29]} 18. Rac1 {[%emt 0:04:57]} Qd7 {[%emt 0:00:08]} 19. Red1 {[%emt 0:05:44]} Qg4 {[%emt 0:02:18]} 20. Rc7 {[%emt 0:04:32]} Nf4 {[%emt 0:00:38]} 21. Qf1 {[%emt 0:20:41]} Qxf3 {[%emt 0:04:34]} 22. gxf4 {[%emt 0:01:17]} Rfe8 {[%emt 0:00:13]} 23. Qd3 {[%emt 0:07:49]} Qg4+ {[%emt 0:00:07]} 24. Kh1 {[%emt 0:00:37]} Qxf4 {[%emt 0:00:31]} 25. Qe3 {[%emt 0:03:25]} Qh4 {[%emt 0:03:50]} 26. Qf3 {[%emt 0:00:54]} b6 {[%emt 0:25:50]} 27. Rxd6 {[%emt 0:02:25]} Rxd6 {[%emt 0:06:39]} 28. Bxd6 {[%emt 0:00:07]} Bf6 {[%emt 0:00:01]} 29. Rb7 {[%emt 0:07:36]} Re6 {[%emt 0:04:06]} 30. Rb8+ {[%emt 0:02:04]} Kh7 {[%emt 0:00:10]} 31. Bc7 {[%emt 0:00:10]} Bg5 {[%emt 0:04:16]} 32. Rxb6 {[%emt 0:02:22]} Bf4 {[%emt 0:01:53]} 33. h3 {[%emt 0:00:45]} Re8 {[%emt 0:00:36]} 34. Rd6 {[%emt 0:02:07]} Qe7 {[%emt 0:02:24]} 35. b6 {[%emt 0:00:55]} g6 {[%emt 0:01:38]} 36. Qg4 {[%emt 0:01:08]} Rf8 {[%emt 0:00:27]} 37. Qf3 {[%emt 0:01:49]} Re8 {[%emt 0:01:59]} 38. Rd5 {[%emt 0:02:04]} f5 {[%emt 0:01:24]} 39. Qd3 {[%emt 0:00:58]} fxe4 {[%emt 0:00:54]} 40. Qxe4 {[%emt 0:00:00]} Qe6 {[%emt 0:00:00]} 41. Kg2 {[%emt 0:02:07]} Qe7 {[%emt 0:02:35]} 42. Rd6 {[%emt 0:02:43]} Rg8 {[%emt 0:02:18]} 43. Qd5 {[%emt 0:01:02]} Qg5+ {[%emt 0:00:41]} 44. Kf1 {[%emt 0:00:31]} Qf5 {[%emt 0:09:20]} 45. Qd3 {[%emt 0:04:53]} Qc8 {[%emt 0:02:59]} 46. Rd7+ {[%emt 0:02:50]} Rg7 {[%emt 0:00:01]} 47. Rxg7+ {[%emt 0:00:09]} Kxg7 {[%emt 0:00:03]} 48. Kg2 {[%emt 0:00:25]} Qb7+ {[%emt 0:01:57]} 49. Qf3 {[%emt 0:00:15]} 1-0

[Event "World Team-ch Women 2019"]
[Site "Astana"]
[Date "2019.03.14"]
[Round "9.19"]
[White "Foisor, Sabina-Francesca"]
[Black "Moaataz, Ayah"]
[Result "1-0"]
[ECO "D35"]
[WhiteElo "2276"]
[BlackElo "2036"]
[Annotator "NA"]
[PlyCount "63"]
[EventDate "2019.02.05"]
[EventType "team-tourn"]
[EventCountry "KAZ"]
[SourceTitle "playchess.com"]
[Source "ChessBase"]
[SourceQuality "1"]
[WhiteTeam "United States"]
[BlackTeam "Egypt"]
[WhiteTeamCountry "USA"]
[BlackTeamCountry "EGY"]
[TimeControl "40/5400+30:1800+30"]

{[%evp 8,57,3,0,19,32767,32767,32767,32767,32767,32767,32767,32767,32767,32767,32767,32767,32767,32767,32767,22,2,30,36,53,43,65,66,121,112,133,96,113,109,109,112,122,77,109,106,117,108,32767,32767,291,205,393,32767,32767,32767,1362,797]} 1. d4 {[%emt 0:00:00]} d5 {[%emt 0:00:00]} 2. c4 {[%emt 0:00:00]} e6 {[%emt 0:00:00]} 3. Nc3 {[%emt 0:00:00]} Nf6 {[%emt 0:00:00]} 4. cxd5 {[%emt 0:00:01]} exd5 {[%emt 0:00:00]} 5. Bg5 {[%emt 0:00:04]} Be7 {[%emt 0:00:27]} 6. e3 {[%emt 0:00:37]} O-O {[%emt 0:01:26]} 7. Bd3 {[%emt 0:00:05]} Nbd7 {[%emt 0:00:43]} 8. Nge2 {[%emt 0:00:29]} Re8 {[%emt 0:01:06]} 9. Qc2 {[%emt 0:01:45]} c6 {[%emt 0:02:23]} 10. O-O {[%emt 0:01:50]} Nf8 {[%emt 0:03:16]} 11. f3 {[%emt 0:02:03]} g6 {[%emt 0:01:48]} 12. Rad1 {[%emt 0:06:49]} Ne6 {[%emt 0:00:39] D36: Queen's Gambit Declined: Exchange Variation: Main line (5 Bg5 c6 6 Qc2)} 13. Bh4 {[%emt 0:00:39]} b6 {[%emt 0:05:24]} 14. Kh1 {[%emt 0:05:57]} Bd7 $146 {[%emt 0:08:55]} ({Predecessor:} 14... a5 15. Qc1 Ba6 16. Bxa6 Rxa6 17. e4 Nh5 18. Bxe7 Rxe7 19. exd5 cxd5 20. Nxd5 {0-1 (37) Gelfand,B (2737)-Zatonskih,A (2424) Douglas 2017}) 15. Qc1 {[%emt 0:08:46]} Ng7 {[%emt 0:04:33]} 16. e4 {[%emt 0:02:27]} dxe4 {[%emt 0:02:12]} 17. fxe4 {[%emt 0:00:12]} Ng4 {[%emt 0:00:58]} (17... Nfh5 $14 18. Bxe7 Qxe7) 18. Bxe7 {[%emt 0:07:31]} Qxe7 {[%emt 0:00:05]} 19. h3 {[%emt 0:02:27]} Nf6 {[%emt 0:05:36]} 20. Rf3 {[%emt 0:10:25]} Rf8 {[%emt 0:03:48]} 21. Rdf1 {[%emt 0:01:29]} Nfe8 {[%emt 0:03:09]} 22. Ng3 {[%emt 0:05:02]} Ne6 {[%emt 0:09:20]} 23. Nf5 {[%emt 0:08:42]} gxf5 {[%emt 0:11:55]} 24. exf5 {[%emt 0:00:09]} f6 {[%emt 0:11:20]} 25. fxe6 {[%emt 0:01:12]} Bxe6 {[%emt 0:00:09]} 26. Qh6 {[%emt 0:01:19]} Rf7 $2 {[%emt 0:02:00]} (26... f5 27. Bxf5 Bxf5) 27. Re1 {[%emt 0:10:51]} Qd6 {[%emt 0:01:32]} 28. Ne4 {[%emt 0:02:51]} Qxd4 $2 {[%emt 0:05:34]} (28... Qf8 29. Nxf6+ Nxf6 30. Qxf8+ Raxf8) 29. Nxf6+ $18 {[%emt 0:02:22]} Rxf6 {[%emt 0:05:49]} 30. Rg3+ {[%emt 0:01:22]} Kf7 {[%emt 0:01:35]} 31. Qxh7+ {[%emt 0:00:05]} Kf8 {[%emt 0:02:09]} 32. Rg8+ {[%emt 0:00:13]} 1-0

[Event "World Team-ch Women 2019"]
[Site "Astana"]
[Date "2019.03.14"]
[Round "9.20"]
[White "Elansary, Eman"]
[Black "Wu, Rochelle"]
[Result "0-1"]
[ECO "D04"]
[WhiteElo "1944"]
[BlackElo "2120"]
[Annotator "NA"]
[PlyCount "98"]
[EventDate "2019.02.05"]
[EventType "team-tourn"]
[EventCountry "KAZ"]
[SourceTitle "playchess.com"]
[Source "ChessBase"]
[SourceQuality "1"]
[WhiteTeam "Egypt"]
[BlackTeam "United States"]
[WhiteTeamCountry "EGY"]
[BlackTeamCountry "USA"]
[TimeControl "40/5400+30:1800+30"]

1. d4 {[%emt 0:00:00]} d5 {[%emt 0:00:01]} 2. Nf3 {[%emt 0:00:08]} Nf6 {[%emt 0:00:13]} 3. e3 {[%emt 0:00:16]} Bf5 {[%emt 0:00:26]} 4. c4 {[%emt 0:00:29]} e6 {[%emt 0:00:51]} 5. Nc3 {[%emt 0:00:57]} c6 {[%emt 0:02:06]} 6. Be2 {[%emt 0:02:59]} Nbd7 {[%emt 0:02:13]} 7. O-O {[%emt 0:01:12]} Bd6 {[%emt 0:05:52]} 8. b3 {[%emt 0:01:39]} O-O {[%emt 0:01:30]} 9. Bb2 {[%emt 0:00:32]} h6 {[%emt 0:05:44]} 10. Rc1 {[%emt 0:00:59]} Qe7 {[%emt 0:00:39]} 11. Nh4 {[%emt 0:05:51]} Be4 {[%emt 0:11:40]} 12. Nxe4 {[%emt 0:04:04]} dxe4 {[%emt 0:00:31]} 13. g3 {[%emt 0:00:30]} Rad8 {[%emt 0:01:14]} 14. f4 {[%emt 0:18:20]} c5 {[%emt 0:08:51]} ({Black should play} 14... exf3 $11 15. Bxf3 Ba3 16. Bxa3 Qxa3) 15. Qc2 {[%emt 0:03:57]} cxd4 {[%emt 0:11:28]} 16. exd4 {[%emt 0:00:34]} b6 {[%emt 0:00:45]} (16... Ba3 $11) 17. Ng2 {[%emt 0:01:02]} Ba3 {[%emt 0:05:47]} 18. Rcd1 {[%emt 0:06:15]} Nb8 $14 {[%emt 0:04:46]} 19. Ba1 {[%emt 0:06:45]} Nc6 {[%emt 0:01:43]} 20. Ne3 {[%emt 0:02:16]} Rd7 {[%emt 0:03:21]} 21. Rd2 {[%emt 0:02:59]} Rfd8 {[%emt 0:07:04]} 22. Rfd1 {[%emt 0:02:48]} Bb4 {[%emt 0:05:09]} 23. Bc3 {[%emt 0:03:33]} Bxc3 {[%emt 0:06:00]} 24. Qxc3 {[%emt 0:00:08]} Qb4 {[%emt 0:00:52]} 25. Qb2 {[%emt 0:03:26]} Nxd4 {[%emt 0:02:05]} 26. Kf2 {[%emt 0:09:53]} Nf5 {[%emt 0:04:12]} 27. Rxd7 {[%emt 0:01:45]} Rxd7 {[%emt 0:00:35]} 28. Rxd7 {[%emt 0:07:52]} Nxd7 {[%emt 0:00:04]} 29. g4 {[%emt 0:03:49]} Nxe3 {[%emt 0:01:56]} 30. Kxe3 {[%emt 0:00:06]} f5 {[%emt 0:05:04]} 31. Qd2 {[%emt 0:00:58]} Qxd2+ {[%emt 0:00:49]} 32. Kxd2 {[%emt 0:00:02]} g5 {[%emt 0:00:55]} 33. Ke3 {[%emt 0:00:46]} Kf7 {[%emt 0:00:04]} 34. b4 {[%emt 0:00:15]} Kf6 {[%emt 0:00:20]} 35. a4 {[%emt 0:03:43]} gxf4+ {[%emt 0:01:24]} 36. Kxf4 {[%emt 0:00:31]} Ne5 {[%emt 0:00:22]} 37. gxf5 {[%emt 0:03:19]} exf5 {[%emt 0:00:04]} 38. Ke3 {[%emt 0:01:04]} Nc6 {[%emt 0:00:30]} 39. b5 {[%emt 0:02:00]} Na5 {[%emt 0:00:06]} 40. Kd4 {[%emt 0:00:00]} Ke6 {[%emt 0:00:00]} 41. Bd1 {[%emt 0:02:30]} Nb7 {[%emt 0:00:31]} 42. h3 {[%emt 0:00:45]} Kd6 {[%emt 0:00:18]} 43. Bh5 {[%emt 0:01:07]} Nc5 {[%emt 0:00:51]} 44. Bg6 {[%emt 0:01:20]} Ne6+ {[%emt 0:00:09]} 45. Ke3 {[%emt 0:02:32]} Ke5 {[%emt 0:00:09]} 46. h4 {[%emt 0:07:44]} f4+ {[%emt 0:00:22]} 47. Ke2 {[%emt 0:00:43]} Kd4 {[%emt 0:00:15]} 48. Bf5 {[%emt 0:01:19]} f3+ {[%emt 0:00:16]} 49. Kf2 {[%emt 0:01:41]} Nc5 {[%emt 0:00:04]} 0-1